[Event "25th Zadar Open 2018"]
[Site "Zadar"]
[Date "2018.12.18"]
[Round "5.12"]
[White "Sokac, Marko"]
[Black "Tica, Sven"]
[Result "1/2-1/2"]
[ECO "B11"]
[WhiteElo "2301"]
[BlackElo "2439"]
[Annotator "NA"]
[PlyCount "104"]
[EventDate "2018.12.15"]
[EventType "swiss"]
[EventCountry "CRO"]
[SourceTitle "playchess.com"]
[Source "ChessBase"]
[SourceQuality "1"]
[TimeControl "40/5400+30:1800+30"]

1. e4 {[%emt 0:00:30]} c6 {[%emt 0:00:30]} 2. Nc3 {[%emt 0:00:30]} d5 {[%emt 0:00:00]} 3. d3 {[%emt 0:00:00]} e5 {[%emt 0:01:00]} 4. f4 {[%emt 0:00:00]} dxe4 {[%emt 0:15:30]} 5. Nxe4 {[%emt 0:02:30]} exf4 {[%emt 0:07:30]} 6. Qe2 {[%emt 0:08:30]} Be6 {[%emt 0:01:30]} 7. Nh3 {[%emt 0:00:30]} Qh4+ {[%emt 0:09:30]} 8. g3 {[%emt 0:00:30]} fxg3 {[%emt 0:00:30]} 9. hxg3 {[%emt 0:00:30]} Qg4 {[%emt 0:00:30]} 10. Qe3 {[%emt 0:01:30]} Nf6 {[%emt 0:03:30]} 11. Nxf6+ {[%emt 0:20:30]} gxf6 {[%emt 0:00:30]} 12. Nf4 {[%emt 0:00:00]} Rg8 {[%emt 0:09:30]} 13. Bh3 {[%emt 0:06:00]} Qxg3+ {[%emt 0:02:30]} 14. Qxg3 {[%emt 0:00:00]} Rxg3 {[%emt 0:00:00]} 15. Bxe6 {[%emt 0:00:00]} fxe6 {[%emt 0:00:00]} 16. Nxe6 {[%emt 0:00:30]} Bd6 {[%emt 0:00:30]} 17. Rxh7 {[%emt 0:01:30]} Rg2 {[%emt 0:01:30]} 18. Ng7+ {[%emt 0:16:30]} Kd8 {[%emt 0:03:30]} 19. Nf5 {[%emt 0:00:30]} Bf8 {[%emt 0:03:30]} 20. Kf1 {[%emt 0:01:30]} Rg4 {[%emt 0:01:30]} 21. Rxb7 {[%emt 0:07:30]} Nd7 {[%emt 0:00:30]} 22. Be3 {[%emt 0:00:30]} Kc8 {[%emt 0:03:30]} 23. Rb3 {[%emt 0:01:30]} Kc7 {[%emt 0:00:30]} 24. Re1 {[%emt 0:02:30]} a5 {[%emt 0:00:30]} 25. d4 {[%emt 0:00:30]} a4 {[%emt 0:00:30]} 26. Rd3 {[%emt 0:01:30]} Ra5 {[%emt 0:00:30]} 27. Ng3 {[%emt 0:00:30]} Bd6 {[%emt 0:01:30] [#]} 28. Bf2 $16 {[%emt 0:00:30]} f5 {[%emt 0:04:30]} 29. c4 {[%emt 0:01:30]} f4 {[%emt 0:01:30]} 30. c5 {[%emt 0:01:30]} fxg3 {[%emt 0:04:30]} 31. cxd6+ {[%emt 0:00:30]} Kxd6 {[%emt 0:00:00]} 32. Bxg3+ {[%emt 0:00:30]} Kd5 {[%emt 0:00:00]} 33. Re7 {[%emt 0:00:30]} Ra7 {[%emt 0:00:30]} 34. Rf3 {[%emt 0:04:30]} Rb7 {[%emt 0:06:28]} 35. Rf5+ {[%emt 0:02:25]} Kc4 {[%emt 0:02:31]} 36. Bf2 {[%emt 0:00:33]} Rg6 {[%emt 0:00:48]} 37. Rf3 {[%emt 0:03:25]} Rd6 {[%emt 0:00:57]} 38. Rc3+ {[%emt 0:01:48]} Kb5 {[%emt 0:04:16]} 39. Ke2 {[%emt 0:01:16]} Ka6 {[%emt 0:01:52]} 40. Rc2 {[%emt 0:00:00]} Rb5 {[%emt 0:00:00]} 41. Kd3 {[%emt 0:09:03]} Rh5 {[%emt 0:09:08]} 42. Bg3 {[%emt 0:06:30]} Rh3 {[%emt 0:02:30]} 43. Rg7 {[%emt 0:00:30]} Kb5 {[%emt 0:01:30]} 44. Ke4 {[%emt 0:07:30]} Nf6+ {[%emt 0:08:30]} 45. Kf5 {[%emt 0:03:30]} Rh5+ {[%emt 0:00:30]} 46. Kg6 {[%emt 0:00:52]} Re6 {[%emt 0:00:00]} 47. Kf7 {[%emt 0:00:30]} Ne8 {[%emt 0:00:00]} 48. Rg8 {[%emt 0:02:23]} Rhh6 {[%emt 0:00:30]} 49. Rxe8 {[%emt 0:12:11]} Rhf6+ {[%emt 0:00:00]} 50. Kg7 {[%emt 0:00:03]} Rg6+ {[%emt 0:00:00]} 51. Kf7 {[%emt 0:00:03]} Rgf6+ {[%emt 0:00:00]} 52. Kg7 {[%emt 0:00:04]} Rg6+ {[%emt 0:00:00]} 1/2-1/2

[Event "25th Zadar Open 2018"]
[Site "Zadar"]
[Date "2018.12.18"]
[Round "5.14"]
[White "Karthik Kumar Pradeep"]
[Black "Ustianovich, Nazar"]
[Result "0-1"]
[ECO "D78"]
[WhiteElo "2230"]
[BlackElo "2383"]
[Annotator "NA"]
[PlyCount "96"]
[EventDate "2018.12.15"]
[EventType "swiss"]
[EventCountry "CRO"]
[SourceTitle "playchess.com"]
[Source "ChessBase"]
[SourceQuality "1"]
[TimeControl "40/5400+30:1800+30"]

1. d4 {[%emt 0:00:30]} Nf6 {[%emt 0:05:30]} 2. c4 {[%emt 0:00:30]} g6 {[%emt 0:00:00]} 3. Nf3 {[%emt 0:00:00]} Bg7 {[%emt 0:00:00]} 4. g3 {[%emt 0:00:00]} c6 {[%emt 0:00:30]} 5. Bg2 {[%emt 0:00:30]} d5 {[%emt 0:00:30]} 6. O-O {[%emt 0:00:30]} O-O {[%emt 0:00:30]} 7. Nbd2 {[%emt 0:10:30]} a5 {[%emt 0:03:30]} 8. a4 {[%emt 0:18:30]} Na6 {[%emt 0:05:30]} 9. b3 {[%emt 0:00:30]} Nb4 {[%emt 0:08:30]} 10. Bb2 {[%emt 0:00:30]} Bf5 {[%emt 0:00:30]} 11. Bc3 {[%emt 0:31:30]} Ne4 {[%emt 0:05:30]} 12. Nxe4 {[%emt 0:00:30]} dxe4 {[%emt 0:12:30]} 13. Ne1 {[%emt 0:10:30]} c5 {[%emt 0:06:30]} 14. e3 {[%emt 0:02:30]} Qc8 {[%emt 0:10:30]} 15. Qd2 {[%emt 0:03:06]} Rd8 {[%emt 0:03:30]} 16. Qb2 {[%emt 0:05:46]} Ra6 {[%emt 0:04:30]} 17. f3 {[%emt 0:04:28]} exf3 {[%emt 0:00:30]} 18. Bxf3 {[%emt 0:00:01]} cxd4 {[%emt 0:15:49]} 19. exd4 {[%emt 0:00:04]} Rad6 {[%emt 0:00:13]} 20. Rd1 {[%emt 0:02:32]} Bxd4+ {[%emt 0:05:12]} 21. Bxd4 {[%emt 0:01:23]} Rxd4 {[%emt 0:00:08]} 22. Rxd4 {[%emt 0:00:13]} Qc5 {[%emt 0:00:09]} 23. Qf2 {[%emt 0:01:08]} Qxd4 {[%emt 0:03:15]} 24. Qxd4 {[%emt 0:00:15]} Rxd4 {[%emt 0:00:01]} 25. Bxb7 {[%emt 0:00:13]} Rd2 {[%emt 0:01:35]} 26. c5 {[%emt 0:04:20]} Rd7 {[%emt 0:02:04]} 27. c6 {[%emt 0:01:24]} Rc7 {[%emt 0:00:52]} 28. Nf3 {[%emt 0:00:01]} Nxc6 {[%emt 0:00:00]} 29. Bxc6 {[%emt 0:00:15]} Rxc6 {[%emt 0:00:00]} 30. Nd4 {[%emt 0:00:03]} Rc5 {[%emt 0:00:00]} 31. Nxf5 {[%emt 0:00:46]} gxf5 {[%emt 0:05:35]} 32. Rd1 {[%emt 0:01:05]} Kg7 {[%emt 0:00:27]} 33. Rd8 {[%emt 0:00:45]} e6 {[%emt 0:00:28]} 34. Rb8 {[%emt 0:00:18]} Kf6 {[%emt 0:01:22]} 35. b4 {[%emt 0:00:01]} Rc1+ {[%emt 0:00:49]} 36. Kf2 {[%emt 0:00:08]} Rc2+ {[%emt 0:00:44]} 37. Kf3 {[%emt 0:01:12]} axb4 {[%emt 0:00:40]} 38. Rxb4 {[%emt 0:00:02]} Rxh2 {[%emt 0:00:03]} 39. Rb7 {[%emt 0:00:51]} Ra2 {[%emt 0:00:11]} 40. Ra7 {[%emt 0:00:00]} Ra3+ {[%emt 0:00:00]} 41. Kf2 {[%emt 0:00:10]} h5 {[%emt 0:03:23]} 42. Kg2 {[%emt 0:03:30]} Kg6 {[%emt 0:01:30]} 43. Ra8 {[%emt 0:02:30]} h4 {[%emt 0:11:35]} 44. gxh4 {[%emt 0:00:30]} Kh5 {[%emt 0:00:01]} 45. Rh8+ {[%emt 0:00:30]} Kg4 {[%emt 0:00:18]} 46. h5 {[%emt 0:00:30]} Ra2+ {[%emt 0:00:11]} 47. Kg1 {[%emt 0:00:30]} Rxa4 {[%emt 0:00:23]} 48. h6 {[%emt 0:00:00]} Kg5 {[%emt 0:00:28]} 0-1

[Event "25th Zadar Open 2018"]
[Site "Zadar"]
[Date "2018.12.18"]
[Round "5.15"]
[White "Salimova, Nurgyul"]
[Black "Mohite, Ranveer"]
[Result "1-0"]
[ECO "B84"]
[WhiteElo "2377"]
[BlackElo "2236"]
[Annotator "NA"]
[PlyCount "71"]
[EventDate "2018.12.15"]
[EventType "swiss"]
[EventCountry "CRO"]
[SourceTitle "playchess.com"]
[Source "ChessBase"]
[SourceQuality "1"]
[TimeControl "40/5400+30:1800+30"]

1. e4 {[%emt 0:00:30]} c5 {[%emt 0:00:30]} 2. Nf3 {[%emt 0:00:00]} e6 {[%emt 0:00:30]} 3. d4 {[%emt 0:00:00]} cxd4 {[%emt 0:00:30]} 4. Nxd4 {[%emt 0:00:30]} a6 {[%emt 0:00:30]} 5. Nc3 {[%emt 0:00:00]} Qc7 {[%emt 0:00:00]} 6. Be2 {[%emt 0:01:00] LiveBook: 1882 Games} Nf6 {[%emt 0:00:00]} 7. O-O {[%emt 0:01:30]} d6 {[%emt 0:00:30]} 8. Qd3 $11 {[%emt 0:00:30]} b5 {[%emt 0:05:30]} 9. b4 {[%emt 0:00:30]} Bb7 {[%emt 0:14:30]} 10. a4 {[%emt 0:06:30]} bxa4 {[%emt 0:00:30]} 11. Rxa4 {[%emt 0:00:30]} Nbd7 {[%emt 0:00:30]} 12. Qe3 {[%emt 0:10:30]} Nb6 {[%emt 0:07:30]} 13. Ra2 {[%emt 0:09:30]} Nc4 {[%emt 0:20:30]} 14. Qh3 {[%emt 0:04:30]} Be7 {[%emt 0:05:30]} 15. b5 {[%emt 0:10:30]} a5 {[%emt 0:06:30]} 16. Bg5 {[%emt 0:08:30]} Qc5 {[%emt 0:06:30]} 17. Bxf6 {[%emt 0:01:30]} gxf6 {[%emt 0:03:30]} 18. Nb3 {[%emt 0:01:30]} Qc7 {[%emt 0:03:30]} 19. Bxc4 {[%emt 0:00:30]} Qxc4 {[%emt 0:00:30]} 20. Nxa5 {[%emt 0:02:30]} Qc8 {[%emt 0:02:30]} 21. Rfa1 {[%emt 0:06:30]} O-O {[%emt 0:00:52]} 22. Qe3 {[%emt 0:03:30]} Rd8 {[%emt 0:05:03]} 23. Nxb7 {[%emt 0:02:30]} Qxb7 {[%emt 0:00:06]} 24. Ra7 {[%emt 0:04:30]} Bf8 {[%emt 0:00:14]} 25. h4 {[%emt 0:01:30]} Rxa7 {[%emt 0:00:24]} 26. Rxa7 {[%emt 0:00:30]} Qb8 {[%emt 0:06:11]} 27. b6 {[%emt 0:06:46]} Rc8 {[%emt 0:00:32]} 28. b7 {[%emt 0:09:16]} Rxc3 {[%emt 0:00:48]} 29. Qxc3 {[%emt 0:00:14]} Qxa7 {[%emt 0:00:08]} 30. Qc8 {[%emt 0:00:23]} Qa1+ {[%emt 0:01:08]} 31. Kh2 {[%emt 0:00:05]} Qe5+ {[%emt 0:00:21]} 32. g3 {[%emt 0:00:15]} Qd4 {[%emt 0:01:00]} 33. Kg1 {[%emt 0:00:20]} Qd1+ {[%emt 0:03:46]} 34. Kg2 {[%emt 0:00:28]} Qe1 {[%emt 0:00:35]} 35. b8=Q {[%emt 0:00:15]} Qxe4+ {[%emt 0:00:07]} 36. Kh2 {[%emt 0:00:06]} 1-0

[Event "25th Zadar Open 2018"]
[Site "Zadar"]
[Date "2018.12.18"]
[Round "5.16"]
[White "Chan, Kim Yew"]
[Black "Bilobrk, Franjo"]
[Result "1/2-1/2"]
[ECO "B38"]
[WhiteElo "2175"]
[BlackElo "2364"]
[Annotator "NA"]
[PlyCount "98"]
[EventDate "2018.12.15"]
[EventType "swiss"]
[EventCountry "CRO"]
[SourceTitle "playchess.com"]
[Source "ChessBase"]
[SourceQuality "1"]
[TimeControl "40/5400+30:1800+30"]

1. Nf3 {[%emt 0:00:30]} c5 {[%emt 0:00:30]} 2. c4 {[%emt 0:00:00]} g6 {[%emt 0:01:30]} 3. e4 {[%emt 0:00:00]} Bg7 {[%emt 0:00:30]} 4. d4 {[%emt 0:00:00]} cxd4 {[%emt 0:02:30]} 5. Nxd4 {[%emt 0:00:00]} Nc6 {[%emt 0:00:00]} 6. Be3 {[%emt 0:00:30]} Nf6 $14 {[%emt 0:01:00] LiveBook: 4420 Games} 7. Nc3 {[%emt 0:00:00]} O-O {[%emt 0:01:30]} 8. Be2 {[%emt 0:00:00]} d6 {[%emt 0:01:30]} 9. O-O {[%emt 0:00:00]} Bd7 {[%emt 0:00:30]} 10. Qd2 {[%emt 0:00:00]} Nxd4 {[%emt 0:00:00]} 11. Bxd4 {[%emt 0:00:30]} Bc6 {[%emt 0:00:00]} 12. f3 {[%emt 0:00:00]} a5 {[%emt 0:06:30]} 13. b3 {[%emt 0:00:00]} Nd7 {[%emt 0:00:30]} 14. Bf2 {[%emt 0:00:30]} Nc5 {[%emt 0:01:30]} 15. Rab1 {[%emt 0:00:30]} h5 {[%emt 0:12:30]} 16. Bd1 {[%emt 0:02:30]} Kh7 {[%emt 0:02:30]} 17. Bc2 {[%emt 0:21:30]} e6 {[%emt 0:12:30]} 18. Rbe1 {[%emt 0:07:30]} Qe7 {[%emt 0:04:30]} 19. f4 {[%emt 0:04:30]} f5 {[%emt 0:09:30]} 20. exf5 {[%emt 0:04:30]} gxf5 {[%emt 0:00:30]} 21. Re3 {[%emt 0:11:30]} Bxc3 {[%emt 0:04:30]} 22. Qxc3 {[%emt 0:01:30]} Kh6 {[%emt 0:13:30]} 23. Rg3 {[%emt 0:07:30]} Rg8 {[%emt 0:03:30]} 24. Bxc5 {[%emt 0:07:30]} dxc5 {[%emt 0:07:15]} 25. Qe5 {[%emt 0:03:30]} h4 {[%emt 0:06:31]} 26. Rg5 {[%emt 0:01:30]} Rae8 {[%emt 0:00:15]} 27. Rxg8 {[%emt 0:07:30]} Rxg8 {[%emt 0:00:06]} 28. Rf2 {[%emt 0:00:30]} Re8 {[%emt 0:02:07]} 29. Re2 {[%emt 0:00:30]} Qg7 {[%emt 0:00:20]} 30. Kf1 {[%emt 0:09:51]} Qxe5 {[%emt 0:00:37]} 31. Rxe5 {[%emt 0:00:04]} b6 {[%emt 0:00:54]} 32. Kf2 {[%emt 0:02:02]} Kg6 {[%emt 0:00:28]} 33. Re2 {[%emt 0:05:24]} Kf6 {[%emt 0:00:07]} 34. Rd2 {[%emt 0:00:43]} Ke7 {[%emt 0:00:15]} 35. Bd1 {[%emt 0:00:42]} Ra8 {[%emt 0:03:12]} 36. a4 {[%emt 0:00:25]} Rd8 {[%emt 0:00:35]} 37. Rxd8 {[%emt 0:00:05]} Kxd8 {[%emt 0:00:01]} 38. Bf3 {[%emt 0:00:13]} Be8 {[%emt 0:00:07]} 39. g3 {[%emt 0:01:36]} hxg3+ {[%emt 0:00:07]} 40. hxg3 {[%emt 0:00:00]} Ke7 {[%emt 0:00:00]} 41. Ke3 {[%emt 0:00:55]} Kf6 {[%emt 0:02:03]} 42. Be2 {[%emt 0:01:30]} Bg6 {[%emt 0:02:30]} 43. Bd1 {[%emt 0:00:30]} Kg7 {[%emt 0:00:30]} 44. Be2 {[%emt 0:00:30]} Kh6 {[%emt 0:00:30]} 45. Bd1 {[%emt 0:00:30]} Kg7 {[%emt 0:03:30]} 46. Be2 {[%emt 0:00:30]} Kf6 {[%emt 0:00:00]} 47. Bd1 {[%emt 0:00:00]} Be8 {[%emt 0:00:00]} 48. Be2 {[%emt 0:00:00]} Bc6 {[%emt 0:00:30]} 49. Bf3 {[%emt 0:00:30]} Be8 {[%emt 0:02:30]} 1/2-1/2

[Event "25th Zadar Open 2018"]
[Site "Zadar"]
[Date "2018.12.18"]
[Round "5.17"]
[White "Blagojevic, Tijana"]
[Black "Sutkovic, Damir"]
[Result "0-1"]
[ECO "A31"]
[WhiteElo "2208"]
[BlackElo "2345"]
[Annotator "NA"]
[PlyCount "74"]
[EventDate "2018.12.15"]
[EventType "swiss"]
[EventCountry "CRO"]
[SourceTitle "playchess.com"]
[Source "ChessBase"]
[SourceQuality "1"]
[TimeControl "40/5400+30:1800+30"]

1. e4 {[%emt 0:00:30]} c5 {[%emt 0:00:30]} 2. Nf3 {[%emt 0:00:00]} e6 {[%emt 0:00:00]} 3. d4 {[%emt 0:00:00]} cxd4 {[%emt 0:00:00]} 4. Nxd4 {[%emt 0:00:30]} a6 {[%emt 0:00:00]} 5. c4 {[%emt 0:00:00]} Nf6 {[%emt 0:00:00]} 6. Nc3 {[%emt 0:00:00]} d6 {[%emt 0:00:30]} 7. Be2 {[%emt 0:00:30]} b6 {[%emt 0:00:30]} 8. O-O {[%emt 0:00:30]} Bb7 {[%emt 0:00:30]} 9. f3 {[%emt 0:00:30]} Nbd7 {[%emt 0:00:00]} 10. Be3 {[%emt 0:05:30]} Be7 {[%emt 0:00:00]} 11. a4 {[%emt 0:00:30]} Rb8 {[%emt 0:01:30]} 12. Rf2 {[%emt 0:08:30]} O-O {[%emt 0:03:30]} 13. Bf1 {[%emt 0:00:30]} Re8 {[%emt 0:02:30]} 14. Rd2 {[%emt 0:00:30]} Qc7 {[%emt 0:03:30]} 15. Rc1 {[%emt 0:01:30]} Rbc8 {[%emt 0:02:30]} 16. Bf2 {[%emt 0:08:30]} Qb8 {[%emt 0:05:30]} 17. Nc2 {[%emt 0:01:30]} Ne5 {[%emt 0:12:30]} 18. Ne3 {[%emt 0:01:30]} Ng6 {[%emt 0:11:30]} 19. Bg3 {[%emt 0:07:30]} Red8 {[%emt 0:03:30]} 20. Qb3 {[%emt 0:02:30]} Ba8 {[%emt 0:04:30]} 21. Rcd1 {[%emt 0:01:30]} h5 {[%emt 0:01:30]} 22. Kh1 {[%emt 0:02:30]} h4 {[%emt 0:01:30]} 23. Bf2 {[%emt 0:00:30]} Nd7 {[%emt 0:02:30]} 24. Ne2 {[%emt 0:05:30]} h3 {[%emt 0:11:30]} 25. g3 {[%emt 0:00:30]} Nge5 {[%emt 0:02:30]} 26. Ng4 {[%emt 0:13:30]} Nxg4 {[%emt 0:09:30]} 27. fxg4 {[%emt 0:00:30]} Bxe4+ {[%emt 0:02:23]} 28. Kg1 {[%emt 0:00:30]} Ne5 {[%emt 0:00:18]} 29. Nd4 {[%emt 0:00:00]} Nxg4 {[%emt 0:01:46]} 30. Bxh3 {[%emt 0:02:00]} Nxf2 {[%emt 0:00:24]} 31. Rxf2 {[%emt 0:00:30]} d5 {[%emt 0:01:08]} 32. Nxe6 {[%emt 0:11:30]} fxe6 {[%emt 0:00:58]} 33. Bxe6+ {[%emt 0:00:00]} Kh8 {[%emt 0:00:22]} 34. g4 {[%emt 0:06:00]} Bc5 {[%emt 0:03:42]} 35. Qh3+ {[%emt 0:00:30]} Bh7 {[%emt 0:00:06]} 36. Bf5 {[%emt 0:00:30]} g6 {[%emt 0:03:05]} 37. Bxg6 {[%emt 0:01:30]} Bxf2+ {[%emt 0:01:22]} 0-1

[Event "25th Zadar Open 2018"]
[Site "Zadar"]
[Date "2018.12.18"]
[Round "5.18"]
[White "Spalir, Jernej"]
[Black "Volotovsky, Kirill"]
[Result "1/2-1/2"]
[ECO "E32"]
[WhiteElo "2336"]
[BlackElo "2179"]
[Annotator "NA"]
[PlyCount "52"]
[EventDate "2018.12.15"]
[EventType "swiss"]
[EventCountry "CRO"]
[SourceTitle "playchess.com"]
[Source "ChessBase"]
[SourceQuality "1"]
[TimeControl "40/5400+30:1800+30"]

1. d4 {[%emt 0:00:30]} Nf6 {[%emt 0:05:30]} 2. c4 {[%emt 0:00:00]} e6 {[%emt 0:00:00]} 3. Nc3 {[%emt 0:00:00]} Bb4 {[%emt 0:00:00]} 4. Qc2 {[%emt 0:00:30]} b6 {[%emt 0:00:30]} 5. e4 {[%emt 0:00:00]} c5 {[%emt 0:00:30]} 6. d5 {[%emt 0:00:00]} Qe7 {[%emt 0:00:30]} 7. Nge2 {[%emt 0:05:30]} exd5 {[%emt 0:00:30]} 8. exd5 {[%emt 0:00:30]} O-O {[%emt 0:00:30]} 9. Bg5 {[%emt 0:00:30]} h6 {[%emt 0:01:30]} 10. Bh4 {[%emt 0:06:30]} d6 {[%emt 0:01:30]} 11. O-O-O {[%emt 0:02:30]} Nbd7 {[%emt 0:01:30]} 12. Ng3 {[%emt 0:15:30]} Ne5 {[%emt 0:02:30]} 13. Nf5 {[%emt 0:11:30]} Bxf5 {[%emt 0:03:30]} 14. Qxf5 {[%emt 0:00:30]} Bxc3 {[%emt 0:05:30]} 15. bxc3 {[%emt 0:00:30]} Ng6 {[%emt 0:08:30]} 16. Bxf6 {[%emt 0:01:30]} Qxf6 {[%emt 0:00:30]} 17. Qxf6 {[%emt 0:00:00]} gxf6 {[%emt 0:00:00]} 18. Bd3 {[%emt 0:01:00]} Rfe8 {[%emt 0:02:00]} 19. Bxg6 {[%emt 0:04:30]} fxg6 {[%emt 0:00:30]} 20. Rhe1 {[%emt 0:00:30]} Kf7 {[%emt 0:00:30]} 21. Kd2 {[%emt 0:00:00]} f5 {[%emt 0:07:30]} 22. Rxe8 {[%emt 0:02:00]} Rxe8 {[%emt 0:00:00]} 23. Kd3 {[%emt 0:01:30]} Re7 {[%emt 0:05:00]} 24. Kd2 {[%emt 0:01:30]} Kf6 {[%emt 0:00:00]} 25. Kd3 {[%emt 0:00:30]} Kf7 {[%emt 0:00:00]} 26. Kd2 {[%emt 0:00:00]} Kf6 {[%emt 0:00:00]} 1/2-1/2

[Event "25th Zadar Open 2018"]
[Site "Zadar"]
[Date "2018.12.18"]
[Round "5.19"]
[White "Sinanovic, Muhamed"]
[Black "Ermeni, Avni"]
[Result "1/2-1/2"]
[ECO "E06"]
[WhiteElo "2325"]
[BlackElo "2183"]
[Annotator "NA"]
[PlyCount "94"]
[EventDate "2018.12.15"]
[EventType "swiss"]
[EventCountry "CRO"]
[SourceTitle "playchess.com"]
[Source "ChessBase"]
[SourceQuality "1"]
[TimeControl "40/5400+30:1800+30"]

1. c4 {[%emt 0:00:30]} Nf6 {[%emt 0:00:30]} 2. g3 {[%emt 0:00:00]} e6 {[%emt 0:01:30]} 3. Bg2 {[%emt 0:00:00]} d5 {[%emt 0:01:30]} 4. Nf3 {[%emt 0:00:30]} c6 {[%emt 0:00:30]} 5. Qc2 {[%emt 0:01:30]} Be7 {[%emt 0:02:30]} 6. O-O {[%emt 0:00:30]} O-O {[%emt 0:00:30]} 7. d4 {[%emt 0:02:30]} b6 {[%emt 0:05:30]} 8. Nbd2 {[%emt 0:04:30]} Bb7 {[%emt 0:08:30]} 9. e4 {[%emt 0:16:30]} dxc4 {[%emt 0:04:30]} 10. Nxc4 {[%emt 0:02:30]} Nbd7 {[%emt 0:20:30]} 11. Rd1 {[%emt 0:19:30]} h6 {[%emt 0:06:30]} 12. Nfe5 {[%emt 0:00:30]} b5 {[%emt 0:09:30]} 13. Nxd7 {[%emt 0:02:30]} Nxd7 {[%emt 0:00:30]} 14. Ne3 {[%emt 0:00:00]} Qb6 {[%emt 0:01:30]} 15. b3 {[%emt 0:03:00]} Rac8 {[%emt 0:08:30]} 16. Bb2 {[%emt 0:02:30]} Rfd8 {[%emt 0:04:30]} 17. a4 {[%emt 0:11:30]} a6 {[%emt 0:02:50]} 18. a5 {[%emt 0:03:30]} Qc7 {[%emt 0:02:46]} 19. Bc3 {[%emt 0:00:30]} Bf8 {[%emt 0:09:48]} 20. f4 {[%emt 0:03:30]} c5 {[%emt 0:01:05]} 21. d5 {[%emt 0:00:30]} exd5 {[%emt 0:00:42]} 22. exd5 {[%emt 0:00:00]} Re8 {[%emt 0:02:19]} 23. Nf5 {[%emt 0:05:00]} g6 {[%emt 0:02:16]} 24. Nh4 {[%emt 0:00:30]} Qd6 {[%emt 0:00:10]} 25. Rd2 {[%emt 0:04:00]} Re3 {[%emt 0:01:01]} 26. Rad1 {[%emt 0:00:26]} c4 {[%emt 0:00:22]} 27. b4 {[%emt 0:01:05]} Bg7 {[%emt 0:00:22]} 28. Bxg7 {[%emt 0:00:42]} Kxg7 {[%emt 0:00:01]} 29. Bh3 {[%emt 0:02:46]} Rce8 {[%emt 0:00:09]} 30. Ng2 {[%emt 0:01:11]} R3e4 {[%emt 0:00:48]} 31. Bxd7 {[%emt 0:00:30]} Qxd7 {[%emt 0:00:04]} 32. Qc3+ {[%emt 0:00:10]} f6 {[%emt 0:00:46]} 33. h4 {[%emt 0:04:05]} Qg4 {[%emt 0:01:02]} 34. d6 {[%emt 0:02:21]} Re2 {[%emt 0:00:05]} 35. Rxe2 {[%emt 0:04:31]} Rxe2 {[%emt 0:00:04]} 36. Rd2 {[%emt 0:01:21]} Rxg2+ {[%emt 0:01:26]} 37. Rxg2 {[%emt 0:00:09]} Qd1+ {[%emt 0:00:01]} 38. Kh2 {[%emt 0:01:01]} Bxg2 {[%emt 0:00:16]} 39. Kxg2 {[%emt 0:00:05]} Qxd6 {[%emt 0:00:00]} 40. Kf2 {[%emt 0:00:00]} Kf7 {[%emt 0:00:00]} 41. Ke2 {[%emt 0:03:07]} Qe6+ {[%emt 0:06:07]} 42. Kd2 {[%emt 0:00:30]} Qe4 {[%emt 0:00:00]} 43. Kc1 {[%emt 0:03:30]} Ke6 {[%emt 0:04:00]} 44. Qd2 {[%emt 0:00:00]} Qf3 {[%emt 0:05:30]} 45. Qd4 {[%emt 0:02:00]} Qd5 {[%emt 0:10:56]} 46. Qb6+ {[%emt 0:00:30]} Qd6 {[%emt 0:02:45]} 47. g4 {[%emt 0:05:30]} f5 {[%emt 0:04:30]} 1/2-1/2

[Event "25th Zadar Open 2018"]
[Site "Zadar"]
[Date "2018.12.18"]
[Round "5.20"]
[White "Bratovic, Blaz"]
[Black "Pallitsch, Clemens"]
[Result "1-0"]
[ECO "B49"]
[WhiteElo "2307"]
[BlackElo "2176"]
[Annotator "NA"]
[PlyCount "73"]
[EventDate "2018.12.15"]
[EventType "swiss"]
[EventCountry "CRO"]
[SourceTitle "playchess.com"]
[Source "ChessBase"]
[SourceQuality "1"]
[TimeControl "40/5400+30:1800+30"]

1. e4 {[%emt 0:00:30]} c5 {[%emt 0:00:30]} 2. Nf3 {[%emt 0:00:00]} e6 {[%emt 0:00:00]} 3. d4 {[%emt 0:00:00]} cxd4 {[%emt 0:00:00]} 4. Nxd4 {[%emt 0:00:30]} Nc6 {[%emt 0:00:30]} 5. Nc3 {[%emt 0:00:00]} Qc7 {[%emt 0:00:00]} 6. Be2 {[%emt 0:01:00]} a6 {[%emt 0:02:00]} 7. O-O {[%emt 0:00:30]} Nf6 {[%emt 0:01:30]} 8. Be3 {[%emt 0:01:30]} b5 {[%emt 0:01:30]} 9. f4 {[%emt 0:06:30]} Nxd4 {[%emt 0:07:30]} 10. Qxd4 {[%emt 0:02:30]} d6 {[%emt 0:00:30]} 11. a4 {[%emt 0:16:30]} e5 {[%emt 0:06:30]} 12. Qd2 {[%emt 0:03:30]} b4 {[%emt 0:04:30]} 13. Nd5 {[%emt 0:01:30]} Nxd5 {[%emt 0:04:30]} 14. exd5 {[%emt 0:01:30]} a5 {[%emt 0:07:30]} 15. fxe5 {[%emt 0:07:30]} dxe5 {[%emt 0:01:30]} 16. Bb5+ {[%emt 0:08:30]} Bd7 {[%emt 0:01:30]} 17. Qf2 {[%emt 0:00:30]} Bxb5 {[%emt 0:01:30]} 18. axb5 {[%emt 0:00:00]} Bd6 {[%emt 0:00:30]} 19. c4 {[%emt 0:00:00]} bxc3 {[%emt 0:01:30]} 20. Rac1 {[%emt 0:00:30]} O-O {[%emt 0:00:30]} 21. Rxc3 {[%emt 0:00:00]} Qd7 {[%emt 0:02:30]} 22. Rc6 {[%emt 0:01:00]} Rab8 {[%emt 0:04:30]} 23. b6 {[%emt 0:05:30]} Bb4 {[%emt 0:04:30]} 24. Bc5 {[%emt 0:00:30]} Bxc5 {[%emt 0:31:43]} 25. Qxc5 {[%emt 0:03:30]} Qg4 {[%emt 0:01:44]} 26. d6 {[%emt 0:01:30]} e4 {[%emt 0:03:19]} 27. Rc7 {[%emt 0:00:30]} Qe6 {[%emt 0:01:24]} 28. b7 {[%emt 0:03:30]} e3 {[%emt 0:02:17]} 29. Re7 {[%emt 0:01:30]} Qb3 {[%emt 0:00:28]} 30. d7 {[%emt 0:00:30]} e2 {[%emt 0:03:48]} 31. Re1 {[%emt 0:00:30]} Rfd8 {[%emt 0:00:50]} 32. R1xe2 {[%emt 0:00:30]} g6 {[%emt 0:02:03]} 33. Re8+ {[%emt 0:02:30]} Kg7 {[%emt 0:00:01]} 34. Qe5+ {[%emt 0:00:30]} Kh6 {[%emt 0:00:31]} 35. Qe3+ {[%emt 0:00:30]} Qxe3+ {[%emt 0:00:19]} 36. R2xe3 {[%emt 0:00:00]} f5 {[%emt 0:01:05]} 37. Rxd8 {[%emt 0:00:00]} 1-0